fUSD/lending_fUSD_20250209
["ID","MTS","AMOUNT","RATE_DAILY","PERIOD"]
[352431453,1739106638223,-4286.93843266,0.00010262,2]
[352431454,1739106638232,-60699.73516719,0.00010268,2]
[352431455,1739106638242,-1886.571163,0.0001027,2]
[352431456,1739106638251,-552.4024971,0.00010278,2]
[352431457,1739106638260,-1886.571163,0.00010279,2]
[352431458,1739106638269,-552.4024971,0.0001028,2]
[352431459,1739106638278,-60699.73516719,0.0001028,2]
[352431460,1739106638287,-377.39,0.00010282,2]
[352431461,1739106638296,-1886.571163,0.00010286,2]
[352431462,1739106638306,-60699.73516719,0.00010289,2]
[352431463,1739106638315,-4286.93843266,0.00010291,2]
[352431464,1739106638324,-181.81,0.00010365,2]
[352431465,1739106638334,-413.91,0.0001041,2]
[352431466,1739106638343,-200.43,0.00010446,2]
[352431467,1739106638352,-221.51,0.00010475,2]
[352431468,1739106638361,-150.99,0.00010475,2]
[352431469,1739106638371,-1464.68,0.00010475,2]
[352431470,1739106638380,-578.4,0.00010485,2]
[352431471,1739106638390,-155.534578,0.00010485,2]
[352431472,1739106638399,-1250.56,0.00010485,2]
[352431473,1739106638408,-618.21,0.00010485,2]
[352431474,1739106638417,-500.0,0.00010485,2]
[352431475,1739106638426,-742.165682,0.00010485,2]
[352431476,1739106638435,-500.0,0.00010485,2]
[352431477,1739106638444,-980.67,0.00010485,2]
[352431478,1739106638455,-783.393527,0.00010485,2]
[352431479,1739106638464,-535.53,0.00010485,2]
[352431480,1739106638473,-500.0,0.00010485,2]
[352431481,1739106638482,-170.412049,0.00010485,2]
[352431482,1739106638492,-500.0,0.00010485,2]
[352431483,1739106638501,-500.0,0.00010485,2]
[352431484,1739106638510,-787.71,0.00010485,2]
[352431485,1739106638519,-500.0,0.00010485,2]
[352431486,1739106638528,-1998.86,0.00010485,2]
[352431487,1739106638537,-540.82,0.00010485,2]
[352431488,1739106638547,-1113.24,0.00010485,2]
[352431489,1739106638556,-173.336989,0.00010485,2]
[352431490,1739106638565,-851.99,0.00010485,2]
[352431491,1739106638574,-1023.94,0.00010485,2]
[352431492,1739106638584,-755.52,0.00010485,2]
[352431493,1739106638594,-500.0,0.00010485,2]
[352431494,1739106638603,-601.89,0.00010485,2]
[352431495,1739106638613,-500.0,0.00010485,2]
[352431496,1739106638622,-803.98,0.00010485,2]
[352431497,1739106638631,-2771.04,0.00010485,2]
[352431498,1739106638641,-794.85,0.00010485,2]
[352431499,1739106638651,-1039.27,0.00010485,2]
[352431500,1739106638661,-500.66,0.00010485,2]
[352431501,1739106638670,-914.61,0.00010485,2]
[352431502,1739106638679,-1124.57,0.00010485,2]
[352431503,1739106638687,-908.92,0.00010485,2]
[352431504,1739106638696,-1060.39,0.00010485,2]
[352431505,1739106638707,-500.0,0.00010485,2]
[352431506,1739106638716,-2161.3,0.00010485,2]
[352431507,1739106638725,-556.45,0.00010485,2]
[352431508,1739106638735,-860.85,0.00010485,2]
[352431509,1739106638743,-500.0,0.00010485,2]
[352431510,1739106638752,-1068.19,0.00010485,2]
[352431511,1739106638762,-525.14,0.00010485,2]
[352431512,1739106638771,-813.79,0.00010485,2]
[352431513,1739106638780,-1066.96,0.00010485,2]
[352431514,1739106638789,-1397.61,0.00010485,2]
[352431515,1739106638799,-924.82,0.00010485,2]
[352431516,1739106638808,-500.0,0.00010485,2]
[352431517,1739106638818,-945.49,0.00010485,2]
[352431518,1739106638827,-1107.28,0.00010485,2]
[352431519,1739106638836,-1183.53,0.00010485,2]
[352431520,1739106638845,-515.19,0.00010485,2]
[352431521,1739106638855,-1100.04,0.00010485,2]
[352431522,1739106638864,-588.03,0.00010485,2]
[352431523,1739106638873,-877.41,0.00010485,2]
[352431524,1739106638886,-500.0,0.00010485,2]
[352431525,1739106638895,-500.0,0.00010485,2]
[352431526,1739106638905,-500.0,0.00010485,2]
[352431527,1739106638915,-882.75,0.00010485,2]
[352431528,1739106638924,-1057.59,0.00010485,2]
[352431529,1739106638934,-500.0,0.00010485,2]
[352431530,1739106638943,-500.0,0.00010485,2]
[352431531,1739106638954,-776.1,0.00010485,2]
[352431532,1739106638964,-500.0,0.00010485,2]
[352431533,1739106638974,-500.0,0.00010485,2]
[352431534,1739106638983,-223.45703884,0.00010485,2]
[352431535,1739106638992,-500.0,0.00010485,2]
[352431536,1739106639001,-500.0,0.00010485,2]
[352431537,1739106639011,-573.16,0.00010485,2]
[352431538,1739106639020,-942.26,0.00010485,2]
[352431539,1739106639029,-500.0,0.00010485,2]
[352431540,1739106639038,-500.0,0.00010486,2]
[352431541,1739106639048,-519.22409967,0.00010486,2]
[352431542,1739106639057,-500.0,0.00010486,2]
[352431543,1739106639067,-502.9691844,0.00010486,2]
[352431544,1739106639076,-500.0,0.00010486,2]
[352431545,1739106639085,-500.0,0.00010486,2]
[352431546,1739106639094,-500.0,0.00010486,2]
[352431547,1739106639103,-500.0,0.00010486,2]
[352431548,1739106639113,-501.99635662,0.00010486,2]
[352431549,1739106639122,-500.0,0.00010486,2]
[352431550,1739106639131,-502.86894151,0.00010486,2]
[352431551,1739106639141,-500.0,0.00010486,2]
[352431552,1739106639150,-500.0,0.00010486,2]
[352431553,1739106639159,-500.0,0.00010486,2]
[352431554,1739106639168,-500.0,0.00010486,2]
[352431555,1739106639177,-500.0,0.00010486,2]
[352431556,1739106639186,-502.85112125,0.00010486,2]
[352431557,1739106639195,-500.0,0.00010486,2]
[352431558,1739106639206,-500.0,0.00010486,2]
[352431559,1739106639216,-500.0,0.00010486,2]
[352431560,1739106639225,-500.0,0.00010486,2]
[352431561,1739106639234,-515.30548674,0.00010486,2]
[352431562,1739106639243,-500.0,0.00010486,2]
[352431563,1739106639252,-500.0,0.00010486,2]
[352431564,1739106639262,-500.0,0.00010486,2]
[352431565,1739106639272,-500.0,0.00010486,2]
[352431566,1739106639282,-500.0,0.00010486,2]
[352431567,1739106639291,-500.0,0.00010486,2]
[352431568,1739106639301,-500.0,0.00010486,2]
[352431569,1739106639310,-500.0,0.00010486,2]
[352431570,1739106639319,-522.0,0.00010486,2]
[352431571,1739106639328,-500.0,0.00010486,2]
[352431572,1739106639337,-500.0,0.00010486,2]
[352431573,1739106639346,-503.60552066,0.00010486,2]
[352431574,1739106639355,-502.19154231,0.00010486,2]
[352431575,1739106639364,-500.0,0.00010486,2]
[352431576,1739106639373,-500.0,0.00010486,2]
[352431577,1739106639382,-502.83734239,0.00010486,2]
[352431578,1739106639391,-500.0,0.00010486,2]
[352431579,1739106639400,-500.0,0.00010486,2]
[352431580,1739106639409,-500.0,0.00010486,2]
[352431581,1739106639418,-500.0,0.00010486,2]
[352431582,1739106639427,-500.0,0.00010486,2]
[352431583,1739106639436,-500.73286795,0.00010486,2]
[352431584,1739106639446,-500.0,0.00010486,2]
[352431585,1739106639456,-500.0,0.00010486,2]
[352431586,1739106639466,-500.0,0.00010486,2]
[352431587,1739106639475,-500.0,0.00010486,2]
[352431588,1739106639484,-501.8188706,0.00010486,2]
[352431589,1739106639493,-500.0,0.00010486,2]
[352431590,1739106639504,-500.0,0.00010486,2]
[352431591,1739106639514,-500.0,0.00010486,2]
[352431592,1739106639523,-500.0,0.00010486,2]
[352431593,1739106639533,-500.0,0.00010486,2]
[352431594,1739106639543,-500.0,0.00010486,2]
[352431595,1739106639552,-500.0,0.00010486,2]
[352431596,1739106639563,-180.63189278,0.00010486,2]
[352431597,1739106639572,-503.39186551,0.00010486,2]
[352431598,1739106639581,-578.5058395,0.00010486,2]
[352431599,1739106639590,-500.0,0.00010486,2]
[352431600,1739106639604,-500.0,0.00010486,2]
[352431601,1739106639614,-500.0,0.00010486,2]
[352431602,1739106639624,-500.0,0.00010486,2]
[352431603,1739106639633,-500.0,0.00010486,2]
[352431604,1739106639642,-290.00876003,0.00010486,2]
[352431605,1739106639655,-631.71,0.00010486,2]
[352431606,1739106639664,-500.0,0.00010486,2]
[352431607,1739106639674,-500.0,0.00010486,2]
[352431608,1739106639683,-500.0,0.00010486,2]
[352431609,1739106639694,-500.0,0.00010486,2]
[352431610,1739106639703,-500.0,0.00010486,2]
[352431611,1739106639713,-500.0,0.00010486,2]
[352431612,1739106639722,-500.0,0.00010486,2]
[352431613,1739106639733,-500.0,0.00010486,2]
[352431614,1739106639742,-500.0,0.00010486,2]
[352431615,1739106639752,-500.0,0.00010486,2]
[352431616,1739106639762,-500.0,0.00010486,2]
[352431617,1739106639771,-500.0,0.00010486,2]
[352431618,1739106639780,-500.0,0.00010486,2]
[352431619,1739106639790,-500.0,0.00010486,2]
[352431620,1739106639798,-500.0,0.00010486,2]
[352431621,1739106639807,-500.0,0.00010486,2]
[352431622,1739106639816,-503.70204028,0.00010486,2]
[352431623,1739106639825,-613.02197224,0.00010486,2]
[352431624,1739106639834,-580.8983735,0.00010486,2]
[352431625,1739106639843,-500.0,0.00010486,2]
[352431626,1739106639852,-500.0,0.00010486,2]
[352431627,1739106639862,-500.0,0.00010486,2]
[352431628,1739106639872,-500.0,0.00010486,2]
[352431629,1739106639886,-500.0,0.00010486,2]
[352431630,1739106639896,-509.38576358,0.00010486,2]
[352431631,1739106639906,-500.0,0.00010486,2]
[352431632,1739106639916,-500.0,0.00010486,2]
[352431633,1739106639928,-500.0,0.00010486,2]
[352431634,1739106639938,-646.97,0.00010486,2]
[352431635,1739106639950,-500.0,0.00010486,2]
[352431636,1739106639960,-500.0,0.00010486,2]
[352431637,1739106639970,-500.0,0.00010486,2]
[352431638,1739106639980,-500.0,0.00010486,2]
[352431639,1739106639991,-609.22,0.00010486,2]
[352431640,1739106640000,-500.0,0.00010486,2]
[352431641,1739106640009,-500.0,0.00010486,2]
[352431642,1739106640018,-503.18359733,0.00010486,2]
[352431643,1739106640027,-500.0,0.00010486,2]
[352431644,1739106640036,-500.0,0.00010486,2]
[352431645,1739106640045,-501.80396869,0.00010486,2]
[352431646,1739106640054,-500.0,0.00010486,2]
[352431647,1739106640064,-500.0,0.00010486,2]
[352431648,1739106640075,-500.0,0.00010486,2]
[352431649,1739106640086,-509.7895694,0.00010486,2]
[352431650,1739106640095,-500.0,0.00010486,2]
[352431651,1739106640104,-567.59,0.00010486,2]
[352431652,1739106640113,-500.0,0.00010486,2]
[352431653,1739106640123,-500.0,0.00010486,2]
[352431654,1739106640132,-500.0,0.00010486,2]
[352431655,1739106640143,-500.0,0.00010486,2]
[352431656,1739106640153,-500.0,0.00010486,2]
[352431657,1739106640163,-500.0,0.00010486,2]
[352431658,1739106640174,-574.32,0.00010486,2]
[352431659,1739106640184,-500.0,0.00010486,2]
[352431660,1739106640194,-500.0,0.00010486,2]
[352431661,1739106640204,-345.60949126,0.00010486,2]
[352431662,1739106640214,-500.0,0.00010486,2]
[352431663,1739106640223,-672.63,0.00010486,2]
[352431664,1739106640234,-500.0,0.00010486,2]
[352431665,1739106640243,-500.0,0.00010486,2]
[352431666,1739106640252,-501.99429771,0.00010486,2]
[352431667,1739106640262,-500.0,0.00010486,2]
[352431668,1739106640271,-500.0,0.00010486,2]
[352431669,1739106640280,-500.0,0.00010486,2]
[352431670,1739106640290,-500.0,0.00010486,2]
[352431671,1739106640300,-500.0,0.00010486,2]
[352431672,1739106640310,-500.0,0.00010486,2]
[352431673,1739106640320,-500.0,0.00010486,2]
[352431674,1739106640330,-500.0,0.00010486,2]
[352431675,1739106640340,-500.0,0.00010486,2]
[352431676,1739106640350,-500.0,0.00010486,2]
[352431677,1739106640361,-500.0,0.00010486,2]
[352431678,1739106640370,-500.0,0.00010486,2]
[352431679,1739106640381,-500.0,0.00010486,2]
[352431680,1739106640390,-499.60087925,0.00010486,2]
[352431681,1739106640400,-500.0,0.00010486,2]
[352431682,1739106640409,-500.0,0.00010486,2]
[352431683,1739106640419,-500.0,0.00010486,2]
[352431684,1739106640428,-500.0,0.00010486,2]
[352431685,1739106640437,-500.0,0.00010486,2]
[352431686,1739106640446,-500.0,0.00010486,2]
[352431687,1739106640456,-500.0,0.00010486,2]
[352431688,1739106640466,-500.0,0.00010486,2]
[352431689,1739106640475,-500.0,0.00010486,2]
[352431690,1739106640484,-500.0,0.00010486,2]
[352431691,1739106640493,-500.0,0.00010486,2]
[352431692,1739106640503,-500.0,0.00010486,2]
[352431693,1739106640512,-500.0,0.00010486,2]
[352431694,1739106640522,-500.0,0.00010486,2]
[352431695,1739106640532,-500.0,0.00010486,2]
[352431696,1739106640541,-500.0,0.00010486,2]
[352431697,1739106640551,-500.0,0.00010486,2]
[352431698,1739106640560,-487.57288583,0.00010486,2]
[352431699,1739106640571,-570.65,0.00010486,2]
[352431700,1739106640582,-500.0,0.00010486,2]
[352431701,1739106640591,-500.0,0.00010486,2]
[352431702,1739106640601,-500.0,0.00010486,2]
[352431703,1739106640610,-469.12219528,0.00010486,2]
[352431704,1739106640619,-500.0,0.00010486,2]
[352431705,1739106640628,-729.94,0.00010486,2]
[352431706,1739106640638,-500.0,0.00010486,2]
[352431707,1739106640648,-562.47,0.00010486,2]
[352431708,1739106640658,-500.0,0.00010486,2]
[352431709,1739106640667,-500.0,0.00010486,2]
[352431710,1739106640677,-500.0,0.00010486,2]
[352431711,1739106640686,-500.0,0.00010486,2]
[352431712,1739106640695,-669.85,0.00010486,2]
[352431713,1739106640706,-500.0,0.00010486,2]
[352431714,1739106640716,-500.0,0.00010486,2]
[352431715,1739106640725,-500.0,0.00010486,2]
[352431716,1739106640735,-500.0,0.00010486,2]
[352431717,1739106640744,-502.13396927,0.00010486,2]
[352431718,1739106640753,-500.0,0.00010486,2]
[352431719,1739106640762,-500.0,0.00010486,2]
[352431720,1739106640771,-500.0,0.00010486,2]
[352431721,1739106640780,-411.13653914,0.00010486,2]
[352431722,1739106640789,-500.0,0.00010486,2]
[352431723,1739106640799,-554.06,0.00010486,2]
[352431724,1739106640809,-500.0,0.00010486,2]
[352431725,1739106640818,-500.0,0.00010486,2]
[352431726,1739106640827,-500.0,0.00010486,2]
[352431727,1739106640836,-534.51,0.00010486,2]
[352431728,1739106640845,-500.0,0.00010486,2]
[352431729,1739106640861,-500.0,0.00010486,2]
[352431730,1739106640870,-500.0,0.00010486,2]
[352431731,1739106640881,-500.0,0.00010486,2]
[352431732,1739106640890,-712.06,0.00010486,2]
[352431733,1739106640899,-500.0,0.00010486,2]
[352431734,1739106640909,-502.04174199,0.00010486,2]
[352431735,1739106640919,-877.97,0.00010486,2]
[352431736,1739106640929,-500.0,0.00010486,2]
[352431737,1739106640938,-500.0,0.00010486,2]
[352431738,1739106640947,-500.0,0.00010486,2]
[352431739,1739106640959,-864.27,0.00010486,2]
[352431740,1739106640977,-500.0,0.00010486,2]
[352431741,1739106640988,-500.0,0.00010486,2]
[352431742,1739106640998,-500.0,0.00010486,2]
[352431743,1739106641008,-500.0,0.00010486,2]
[352431744,1739106641017,-500.0,0.00010486,2]
[352431745,1739106641026,-500.0,0.00010486,2]
[352431746,1739106641035,-500.0,0.00010486,2]
[352431747,1739106641045,-500.70203531,0.00010486,2]
[352431748,1739106641055,-500.0,0.00010486,2]
[352431749,1739106641063,-500.0,0.00010486,2]
[352431750,1739106641073,-868.57,0.00010486,2]
[352431751,1739106641082,-534.18,0.00010486,2]
[352431752,1739106641091,-500.0,0.00010486,2]
[352431753,1739106641101,-587.36,0.00010486,2]
[352431754,1739106641110,-1185.62,0.00010486,2]
[352431755,1739106641119,-500.0,0.00010486,2]
[352431756,1739106641129,-500.0,0.00010486,2]
[352431757,1739106641138,-500.0,0.00010486,2]
[352431758,1739106641147,-500.0,0.00010486,2]
[352431759,1739106641156,-500.0,0.00010486,2]
[352431760,1739106641166,-500.0,0.00010486,2]
[352431761,1739106641175,-500.0,0.00010486,2]
[352431762,1739106641184,-500.0,0.00010486,2]
[352431763,1739106641195,-500.0,0.00010486,2]
[352431764,1739106641205,-500.0,0.00010486,2]
[352431765,1739106641215,-500.0,0.00010486,2]
[352431766,1739106641224,-500.0,0.00010486,2]
[352431767,1739106641233,-500.0,0.00010486,2]
[352431768,1739106641242,-532.48,0.00010486,2]
[352431769,1739106641251,-500.0,0.00010486,2]
[352431770,1739106641260,-500.0,0.00010486,2]
[352431771,1739106641270,-500.0,0.00010486,2]
[352431772,1739106641280,-500.0,0.00010486,2]
[352431773,1739106641289,-500.0,0.00010486,2]
[352431774,1739106641298,-220.65309434,0.00010486,2]
[352431775,1739106641310,-4000.0,0.0001051,2]
[352431776,1739106641323,-500.0,0.00010614,2]
[352431777,1739106641332,-15800.2335579,0.00010615,2]
[352431778,1739106641341,-8741.2922717,0.00010615,2]
[352431779,1739106641351,-633.84381174,0.0001062,2]
[352431780,1739106641360,-500.0,0.0001062,2]
[352431781,1739106641369,-500.0,0.0001062,2]
[352431782,1739106641379,-500.0,0.0001062,2]
[352431783,1739106641389,-507.36492898,0.0001062,2]
[352431784,1739106641400,-500.0,0.0001062,2]
[352431785,1739106641409,-500.0,0.0001062,2]
[352431786,1739106641418,-500.0,0.0001062,2]
[352431787,1739106641428,-500.0,0.0001062,2]
[352431788,1739106641438,-500.0,0.0001062,2]
[352431789,1739106641449,-500.0,0.0001062,2]
[352431790,1739106641460,-500.0,0.0001062,2]
[352431791,1739106641470,-500.0,0.0001062,2]
[352431792,1739106641479,-500.0,0.0001062,2]
[352431793,1739106641489,-500.0,0.0001062,2]
[352431794,1739106641499,-550.0,0.0001062,2]
[352431795,1739106641509,-500.0,0.0001062,2]
[352431796,1739106641518,-500.0,0.0001062,2]
[352431797,1739106641528,-500.0,0.0001062,2]
[352431798,1739106641537,-500.0,0.0001062,2]
[352431799,1739106641546,-500.0,0.0001062,2]
[352431800,1739106641555,-500.0,0.0001062,2]
[352431801,1739106641565,-500.0,0.0001062,2]
[352431802,1739106641576,-500.0,0.0001062,2]
[352431803,1739106641586,-500.0,0.0001062,2]
[352431804,1739106641596,-500.0,0.0001062,2]
[352431805,1739106641605,-500.0,0.0001062,2]
[352431806,1739106641615,-500.0,0.0001062,2]
[352431807,1739106641626,-500.0,0.0001062,2]
[352431808,1739106641636,-500.0,0.0001062,2]
[352431809,1739106641645,-500.0,0.0001062,2]
[352431810,1739106641655,-500.0,0.0001062,2]
[352431811,1739106641664,-500.0,0.0001062,2]
[352431812,1739106641674,-500.0,0.0001062,2]
[352431813,1739106641685,-500.0,0.0001062,2]
[352431814,1739106641696,-500.0,0.0001062,2]
[352431815,1739106641706,-500.0,0.0001062,2]
[352431816,1739106641715,-500.0,0.0001062,2]
[352431817,1739106641725,-500.0,0.0001062,2]
[352431818,1739106641736,-500.0,0.0001062,2]
[352431819,1739106641745,-500.0,0.0001062,2]
[352431820,1739106641754,-500.0,0.0001062,2]
[352431821,1739106641763,-500.0,0.0001062,2]
[352431822,1739106641772,-500.0,0.0001062,2]
[352431823,1739106641781,-500.0,0.0001062,2]
[352431824,1739106641790,-500.0,0.0001062,2]
[352431825,1739106641800,-500.0,0.0001062,2]
[352431826,1739106641809,-500.0,0.0001062,2]
[352431827,1739106641818,-500.0,0.0001062,2]
[352431828,1739106641827,-500.0,0.0001062,2]
[352431829,1739106641836,-500.0,0.0001062,2]
[352431830,1739106641846,-500.0,0.0001062,2]
[352431831,1739106641856,-500.0,0.0001062,2]
[352431832,1739106641866,-500.0,0.0001062,2]
[352431833,1739106641876,-500.0,0.0001062,2]
[352431834,1739106641889,-500.0,0.0001062,2]
[352431835,1739106641899,-500.0,0.0001062,2]
[352431836,1739106641908,-500.0,0.0001062,2]
[352431837,1739106641918,-500.0,0.0001062,2]
[352431838,1739106641929,-500.0,0.0001062,2]
[352431839,1739106641939,-500.0,0.0001062,2]
[352431840,1739106641950,-500.0,0.0001062,2]
[352431841,1739106641960,-500.0,0.0001062,2]
[352431842,1739106641970,-500.0,0.0001062,2]
[352431843,1739106642172,-500.0,0.0001062,2]
[352431844,1739106642184,-500.0,0.0001062,2]
[352431845,1739106642193,-500.0,0.0001062,2]
[352431846,1739106642203,-500.0,0.0001062,2]
[352431847,1739106642215,-500.0,0.0001062,2]
[352431848,1739106642224,-500.0,0.0001062,2]
[352431849,1739106642234,-500.0,0.0001062,2]
[352431850,1739106642243,-213.32113012,0.0001062,2]
[352431851,1739106642253,-500.0,0.0001062,2]
[352431852,1739106642263,-500.0,0.0001062,2]
[352431853,1739106642272,-500.0,0.0001062,2]
[352431854,1739106642281,-500.0,0.0001062,2]
[352431855,1739106642291,-500.0,0.0001062,2]
[352431856,1739106642300,-500.0,0.0001062,2]
[352431857,1739106642310,-500.0,0.0001062,2]
[352431858,1739106642319,-500.0,0.0001062,2]
[352431859,1739106642329,-491.21083027,0.0001062,2]
[352431860,1739106642338,-500.0,0.0001062,2]
[352431861,1739106642348,-500.0,0.0001062,2]
[352431862,1739106642357,-500.0,0.00010621,2]
[352431863,1739106642366,-500.0,0.00010621,2]
[352431864,1739106642376,-500.0,0.00010621,2]
[352431865,1739106642385,-500.0,0.00010621,2]
[352431866,1739106642395,-500.0,0.00010621,2]
[352431867,1739106642404,-502.82582375,0.00010621,2]
[352431868,1739106642414,-500.0,0.00010621,2]
[352431869,1739106642423,-500.0,0.00010621,2]
[352431870,1739106642432,-500.0,0.00010621,2]
[352431871,1739106642442,-500.0,0.00010621,2]
[352431872,1739106642451,-500.0,0.00010621,2]
[352431873,1739106642462,-346.18986329,0.00010621,2]
[352431874,1739106642471,-500.0,0.00010621,2]
[352431875,1739106642481,-500.0,0.00010621,2]
[352431876,1739106642491,-500.0,0.00010621,2]
[352431879,1739106642501,-500.0,0.00010621,2]
[352431882,1739106642510,-500.0,0.00010621,2]
[352431883,1739106642519,-528.93936446,0.00010621,2]
[352431886,1739106642529,-501.35790133,0.00010621,2]
[352431888,1739106642539,-500.0,0.00010621,2]
[352431889,1739106642548,-500.0,0.00010621,2]
[352431890,1739106642557,-500.0,0.00010621,2]
[352431891,1739106642567,-500.0,0.00010621,2]
[352431892,1739106642576,-502.88093868,0.00010621,2]
[352431893,1739106642586,-500.0,0.00010621,2]
[352431894,1739106642595,-502.03898472,0.00010621,2]
[352431895,1739106642604,-217.86466076,0.00010621,2]
[352431896,1739106642613,-500.0,0.00010621,2]
[352431897,1739106642623,-500.0,0.00010621,2]
[352431898,1739106642632,-500.0,0.00010621,2]
[352431899,1739106642641,-500.0,0.00010621,2]
[352431900,1739106642650,-500.0,0.00010621,2]
[352431901,1739106642660,-501.66708305,0.00010621,2]
[352431902,1739106642670,-172.10155687,0.00010621,2]
[352431903,1739106642679,-502.36590718,0.00010621,2]
[352431904,1739106642689,-500.0,0.00010621,2]
[352431905,1739106642698,-500.0,0.00010621,2]
[352431906,1739106642707,-504.33478634,0.00010621,2]
[352431907,1739106642716,-500.0,0.00010621,2]
[352431908,1739106642726,-500.0,0.00010621,2]
[352431909,1739106642735,-504.12757462,0.00010621,2]
[352431910,1739106642744,-500.0,0.00010621,2]
[352431911,1739106642754,-500.0,0.00010621,2]
[352431912,1739106642763,-501.25278451,0.00010621,2]
[352431913,1739106642772,-500.0,0.00010621,2]
[352431914,1739106642782,-500.0,0.00010621,2]
[352431915,1739106642791,-606.17410988,0.00010621,2]
[352431916,1739106642801,-500.0,0.00010621,2]
[352431917,1739106642810,-500.0,0.00010621,2]
[352431918,1739106642819,-500.0,0.00010621,2]
[352431919,1739106642828,-500.0,0.00010621,2]
[352431920,1739106642837,-500.0,0.00010621,2]
[352431921,1739106642846,-500.0,0.00010621,2]
[352431922,1739106642855,-501.8576505,0.00010621,2]
[352431923,1739106642865,-500.0,0.00010621,2]
[352431924,1739106642880,-500.0,0.00010621,2]
[352431925,1739106642890,-500.0,0.00010621,2]
[352431926,1739106642899,-500.0,0.00010621,2]
[352431927,1739106642909,-501.49905254,0.00010621,2]
[352431928,1739106642918,-500.0,0.00010621,2]
[352431929,1739106642929,-500.0,0.00010621,2]
[352431930,1739106642938,-500.0,0.00010621,2]
[352431931,1739106642948,-500.0,0.00010621,2]
[352431932,1739106642957,-393.11443953,0.00010621,2]
[352431933,1739106642967,-500.0,0.00010621,2]
[352431934,1739106642977,-543.73,0.00010621,2]
[352431935,1739106642986,-500.0,0.00010621,2]
[352431936,1739106642998,-356.32294848,0.00010621,2]
[352431937,1739106643008,-500.0,0.00010621,2]
[352431938,1739106643017,-501.42547574,0.00010621,2]
[352431939,1739106643027,-500.0,0.00010621,2]
[352431940,1739106643036,-500.0,0.00010621,2]
[352431941,1739106643045,-500.0,0.00010621,2]
[352431942,1739106643055,-501.15554484,0.00010621,2]
[352431943,1739106643064,-500.0,0.00010621,2]
[352431944,1739106643074,-500.0,0.00010621,2]
[352431945,1739106643083,-500.0,0.00010621,2]
[352431946,1739106643092,-500.0,0.00010621,2]
[352431947,1739106643102,-500.0,0.00010621,2]
[352431948,1739106643112,-502.5544929,0.00010621,2]
[352431949,1739106643121,-500.0,0.00010621,2]
[352431950,1739106643131,-500.0,0.00010621,2]
[352431951,1739106643140,-500.0,0.00010621,2]
[352431952,1739106643151,-500.0,0.00010621,2]
[352431953,1739106643160,-500.0,0.00010621,2]
[352431954,1739106643169,-500.0,0.00010621,2]
[352431955,1739106643178,-500.0,0.00010621,2]
[352431956,1739106643187,-500.0,0.00010621,2]
[352431957,1739106643196,-500.0,0.00010621,2]
[352431959,1739106643206,-502.26121347,0.00010621,2]
[352431961,1739106643215,-500.0,0.00010621,2]